Cogmind - Beta 14 @@@ ROGUE MODE // 2024.10.17 @ 17:26:32 Player: zeyvai Result: Destroyed by G-47 Trooper with Particle Gun Performance ------------- Evolutions (2) 1000 Regions Visited (4) 800 Robots Destroyed (25) 125 Value Destroyed (960) 960 Prototype IDs (9) 180 Alien Tech Used (0) 0 Bonus (805) 805 TOTAL SCORE: 3870 Bonus ------- High Alert Combat Kills 254 Follower Combat Kills 551 Cogmind --------- Core Integrity 0/550 Matter 263/300 Energy 17/250 System Corruption 0% Temperature Cool (78) Movement Flying (107) Ox1 Location -8/Materials Parts ------- > --- POWER (2) -------- Ion Engine Light Nuclear Core > --- PROPULSION (4) --- Improved Flight Unit Improved Flight Unit > --- UTILITY (3) ------ (None) > --- WEAPON (2) ------- Beamcaster Improved Assault Rifle > --- INVENTORY (5) ---- Seismic Detector Shock Absorption System Peak State ------------ > --- POWER ------------ Light Deuterium Engine > --- PROPULSION ------- Improved Flight Unit Improved Flight Unit Cesium-ion Thruster Surge Thruster > --- UTILITY ---------- Active Sensor Suite > --- WEAPON ----------- Light Assault Rifle Enhanced Autogun > --- INVENTORY -------- Cooled Ion Engine Improved Flight Unit Improved Flight Unit Seismic Detector Shock Absorption System [Rating: 48] Favorites ----------- Power Light Deuterium Engine Engine Light Deuterium Engine Power Core Light Nuclear Core Propulsion Improved Flight Unit Treads Light Treads Leg Aluminum Leg Wheel Compact Wheel Hover Unit Hover Unit Flight Unit Improved Flight Unit Utility Terrain Scanner Device Terrain Scanner Storage Small Storage Unit Hackware Hacking Suite Weapon Light Cannon Energy Gun Medium Laser Energy Cannon Heavy Ion Cannon Ballistic Gun Light Assault Rifle Ballistic Cannon Light Cannon Special Melee Weapon Datajack Build | -11 -10 -9 -9 -8 ------- Run | Yrd Mat Mat Sto Mat Slots Evolved 4 | . . 2 . 2 Power 1 | . . . . 1 Propulsion 2 | . . 2 . . Utility 1 | . . . . 1 Weapon . | . . . . . Parts Attached 67 | 4 4 3 25 31 Power 14 | . 1 1 3 9 Engine 12 | . 1 1 3 7 Core 2 | . . . . 2 Reactor . | . . . . . Propulsion 27 | 2 . 2 16 7 Treads 3 | . . 2 1 . Leg 4 | . . . 4 . Wheel 3 | 2 . . 1 . Hover 1 | . . . 1 . Flight 16 | . . . 9 7 Utility 11 | 1 1 . 3 6 Device 8 | . 1 . 3 4 Storage 2 | 1 . . . 1 Processor . | . . . . . Hackware 1 | . . . . 1 Protection . | . . . . . Artifact . | . . . . . Weapon 15 | 1 2 . 3 9 Energy Gun 6 | . 1 . 1 4 Energy Cannon 1 | . . . . 1 Ballistic Gun 6 | 1 1 . 1 3 Ballistic Cannon 1 | . . . 1 . Launcher . | . . . . . Special Weapon . | . . . . . Impact Weapon . | . . . . . Slashing Weapon . | . . . . . Piercing Weapon . | . . . . . Special Melee Weapon 1 | . . . . 1 Unidentified Prototypes 4 | . . . 2 2 Parts Lost 22 | . . . 4 18 Power 4 | . . . . 4 Propulsion 8 | . . . 3 5 Utility 4 | . . . 1 3 Weapon 6 | . . . . 6 Highest Loss Streak 11 | . . . 2 11 To Critical Strikes . | . . . . . Average Slot Usage (%) 89 | . 90 100 96 67 Engine 11 | . 14 11 11 10 Treads 4 | . . 22 5 . Leg 10 | . . . 17 . Wheel 5 | . 28 22 2 . Hover 3 | . . . 4 . Flight 15 | . . . 13 29 Device 13 | . 5 11 16 8 Storage 5 | . 14 11 3 3 Energy Gun 6 | . 3 . 9 2 Ballistic Gun 5 | . 24 22 2 4 Ballistic Cannon 6 | . . . 9 3 Peak Build Rating 48 | 4 7 12 20 48 Average Rating 15 | 3 6 10 13 27 On Entrance 8 | . 4 7 12 20 Naked Turns . | . . . . . Heaviest Build 20 | 6 11 13 16 20 Greatest Support 30 | 10 26 26 30 20 Greatest Overweight (x) 4 | . 1 . 4 1 Average Overweight (x) . | . . . . . Largest Inventory Capacity 8 | 8 8 8 8 8 Average Capacity 6 | 7 8 8 6 6 Most Carried 8 | 8 8 8 8 8 Average Carried 6 | 3 7 7 5 5 Final Capacity 8 | 8 8 8 5 5 Final Carried 8 | 8 8 8 5 2 Class Distribution -------------------- 46% | Commander-Mutant 22% | Mutant 12% | Sprinter 9% | Commander-Sprinter 8% | Scout Dominant Class ---------------- Mutant | -10/Materials Mutant | -9/Materials Commander-Mutant | -9/Storage Scout | -8/Materials Resources | -11 -10 -9 -9 -8 ----------- Run | Yrd Mat Mat Sto Mat Matter Collected 994 | 232 . 55 338 369 Remotely . | . . . . . Salvage Created 1045 | . 85 113 417 430 Parts 73 | . 4 10 33 26 Haulers Intercepted . | . . . . . Recyclers Shooed . | . . . . . Parts Field Recycled . | . . . . . Retrieved Matter . | . . . . . Parts Self-Destructed . | . . . . . Prevented . | . . . . . Kills | -11 -10 -9 -9 -8 ------- Run | Yrd Mat Mat Sto Mat Combat Hostiles Destroyed 22 | . 2 2 9 9 Guns 16 | . 2 2 5 7 Cannons 5 | . . . 4 1 Classes Destroyed 6 | . 1 1 1 3 Operator 1 | . . . . 1 Watcher 2 | . . . 1 1 Swarmer 1 | . . . . 1 Grunt 11 | . 2 . 3 6 Brawler 1 | . . . . 1 Sentry 9 | . . 2 6 1 Best Kill Streak 4 | . 2 3 2 4 Combat Bots Only 4 | . 2 3 2 4 Max Kills in Single Turn 1 | . 1 1 1 1 Gunslinging . | . . . . . Exploded . | . . . . . Melee . | . . . . . Uniques/NPCs Destroyed . | . . . . . Combat | -11 -10 -9 -9 -8 -------- Run | Yrd Mat Mat Sto Mat Hostile Shots Fired 224 | . 8 10 52 154 Missed 70 | . 1 4 16 49 Damage Taken 2628 | . 80 82 544 1922 Core 718 | . 35 . 128 555 Absorbed by Shields . | . . . . . Core Remaining (%) 84 | 100 86 . 68 . Volleys Fired 103 | . 5 7 28 63 Largest 2 | . 2 2 2 2 Hottest 98 | . 40 40 85 98 Shots Fired 152 | . 10 14 55 73 Gun 115 | . 10 14 33 58 Cannon 37 | . . . 22 15 Launcher . | . . . . . Special . | . . . . . Kinetic 107 | . 10 14 34 49 Thermal 45 | . . . 21 24 Explosive . | . . . . . Electromagnetic . | . . . . . Robot Hit Streak 18 | . 8 16 18 10 Robot Miss Streak 3 | . 1 1 2 3 Penetration Max . | . . . . . Secondary Targets 1 | . . . . 1 Max Gunslinging Chain 1 | . . . . 1 Shots Hit Robots 113 | . 9 12 36 56 Core Hits 53 | . 5 8 18 22 Critical Kills 1 | . . 1 . . Critical Parts Destroyed . | . . . . . Critical Strikes 3 | . . 1 1 1 Burn 1 | . . . . 1 Destroy 1 | . . 1 . . Blast 1 | . . . 1 . Melee Attacks . | . . . . . Impact . | . . . . . Slashing . | . . . . . Piercing . | . . . . . Sneak Attacks . | . . . . . Combat Hostiles . | . . . . . Follow-up Attacks . | . . . . . Damage Inflicted 1599 | . 69 92 533 905 Guns 1107 | . 69 92 272 674 Cannons 489 | . . . 261 228 Explosions . | . . . . . Melee . | . . . . . Ramming 3 | . . . . 3 Kinetic 1084 | . 69 92 333 590 Thermal 512 | . . . 200 312 Explosive . | . . . . . Electromagnetic . | . . . . . Impact . | . . . . . Slashing . | . . . . . Piercing . | . . . . . Highest Corruption . | . . . . . Average Corruption . | . . . . . Corruption Purged . | . . . . . Corruption Blocked . | . . . . . Overload Shots . | . . . . . Overflow Damage . | . . . . . Projectiles . | . . . . . Explosions . | . . . . . Melee . | . . . . . Knockbacks 2 | . . . . 2 Impact . | . . . . . Kinetic 2 | . . . . 2 Secondary . | . . . . . Self-Inflicted Damage 1 | . . . . 1 Shots . | . . . . . Rammed 2 | . . . . 2 Targets Rammed 2 | . . . . 2 Kicked . | . . . . . Crushed . | . . . . . Highest Temperature 221 | . 12 7 132 221 Average Temperature 51 | . 9 5 41 60 Received Heat Transfer 1155 | . 42 27 195 891 Siege Activations . | . . . . . Robots Corrupted . | . . . . . Combat Hostiles . | . . . . . Parts Fried . | . . . . . Impact Corruptions . | . . . . . Robots Melted 1 | . . . . 1 Combat Hostiles 1 | . . . . 1 Parts Melted 2 | . . . 1 1 Heat Transferred 1369 | . . . 592 777 Parts Sabotaged . | . . . . . Parts Stolen . | . . . . . Parts Stripped . | . . . . . Power Chain Reactions . | . . . . . Alert | -11 -10 -9 -9 -8 ------- Run | Yrd Mat Mat Sto Mat Peak Influence 762 | . 70 104 710 762 Initial 269 | . . 29 43 269 Average 422 | . 8 73 490 541 Maximum Alert Level 3 | . . . 3 3 Low Security (%) 22 | 100 100 100 9 . Level 1 9 | . . . 5 26 Level 2 58 | . . . 82 34 Level 3 9 | . . . 2 39 Level 4 . | . . . . . Level 5 . | . . . . . High Security . | . . . . . Max Security . | . . . . . Squads Dispatched 10 | . 1 . 5 4 Investigation 4 | . 1 . 2 1 Extermination . | . . . . . Reinforcement 3 | . . . . 3 Assault 3 | . . . 3 . Garrison . | . . . . . Intercept . | . . . . . Searches Triggered . | . . . . . Construction Impeded . | . . . . . Haulers Reinforced . | . . . . . Active Scanning Responses 1 | . . . . 1 Cargo Convoy Interrupts . | . . . . . Stealth | -11 -10 -9 -9 -8 --------- Run | Yrd Mat Mat Sto Mat Distress Signals 2 | . . . 1 1 Communications Jammed . | . . . . . Distress Signals . | . . . . . Times Spotted 55 | . 3 2 24 26 Peak Tracking Total 8 | . 3 2 7 8 Tactical Retreats 5 | . . . 3 2 Traps | -11 -10 -9 -9 -8 ------- Run | Yrd Mat Mat Sto Mat Traps Triggered 2 | . 1 . 1 . Indirectly . | . . . . . Trap Hack Attempts . | . . . . . Triggered . | . . . . . Disarmed . | . . . . . Reprogrammed 6 | . 6 . . . Reused . | . . . . . Traps Extracted . | . . . . . Installed . | . . . . . Triggered . | . . . . . Machines | -11 -10 -9 -9 -8 ---------- Run | Yrd Mat Mat Sto Mat Machines Disabled . | . . . . . Max in Single Turn . | . . . . . Machines Repaired . | . . . . . Machines Dismantled . | . . . . . Machines Sabotaged . | . . . . . Overloaded Fab Kills . | . . . . . Hacking | -11 -10 -9 -9 -8 --------- Run | Yrd Mat Mat Sto Mat Machines Accessed 10 | . 1 . 8 1 Terminals 9 | . 1 . 7 1 Fabricators . | . . . . . Repair Stations . | . . . . . Recycling Units 1 | . . . 1 . Scanalyzers . | . . . . . Garrison Access . | . . . . . Total Hacks 36 | . 3 . 28 5 Successful 20 | . 3 . 15 2 Failed 16 | . . . 13 3 Catastrophic 3 | . . . 3 . Database Lockouts . | . . . . . Manual 1 | . . . 1 . Terminals 33 | . 3 . 25 5 Fabricators . | . . . . . Repair Stations . | . . . . . Recycling Units 3 | . . . 3 . Scanalyzers . | . . . . . Garrison Access . | . . . . . Terminal Hacks 18 | . 3 . 13 2 Part Schematic 7 | . . . 7 . Robot Analysis 1 | . . . 1 . Prototype ID Bank 3 | . 1 . 2 . Open Door 1 | . . . 1 . Branch Access Points 1 | . . . . 1 Locate Traps 1 | . . . . 1 Reprogram Traps 1 | . 1 . . . Dispatch Records 1 | . . . 1 . Patrol Status 1 | . 1 . . . Investigation Status 1 | . . . 1 . Fabricator Hacks . | . . . . . Repair Station Hacks . | . . . . . Recycling Unit Hacks 2 | . . . 2 . Report Inventory 1 | . . . 1 . Retrieve Components 1 | . . . 1 . Scanalyzer . | . . . . . Garrison Access Hacks . | . . . . . Unauthorized Hacks . | . . . . . Terminals . | . . . . . Fabricators . | . . . . . Repair Stations . | . . . . . Recycling Units . | . . . . . Scanalyzers . | . . . . . Garrison Access . | . . . . . Data Cores Recovered 2 | . . . 1 1 Used 1 | . . . . 1 Hacking Detections 10 | . 1 . 8 1 Full Trace Events 2 | . . . 2 . Feedback Events . | . . . . . Feedback Blocked . | . . . . . Robot Schematics Acquired . | . . . . . Robots Built . | . . . . . Authchips . | . . . . . Time . | . . . . . Total Robot Build Rating . | . . . . . Part Schematics Acquired 7 | . . . 7 . Parts Built . | . . . . . Authchips . | . . . . . Time . | . . . . . Total Part Build Rating . | . . . . . Parts Repaired . | . . . . . Time . | . . . . . Parts Recycled . | . . . . . Recycled Matter . | . . . . . Retrieved Matter . | . . . . . Retrieved Components 7 | . . . 7 . Parts Scanalyzed . | . . . . . Part Schematics Acquired . | . . . . . Parts Damaged . | . . . . . Bothacking | -11 -10 -9 -9 -8 ------------ Run | Yrd Mat Mat Sto Mat Used RIF Installer . | . . . . . Robots Hacked . | . . . . . Non-combat . | . . . . . Combat . | . . . . . Robot Hacks Applied . | . . . . . Relay Couplers Released . | . . . . . Fabnet Peak Effective % . | . . . . . Robots Rewired 1 | . . . 1 . Allies Hacked . | . . . . . Hacks Repelled . | . . . . . Allies | -11 -10 -9 -9 -8 -------- Run | Yrd Mat Mat Sto Mat Total Allies 12 | . . . 12 . Largest Group 10 | . . . 10 2 Highest-Rated Group 110 | . . . 110 62 Highest-Rated Ally 31 | . . . 31 31 Total Orders 11 | . . . 11 . AID 11 | . . . 11 . Ally Attacks 141 | . . . 124 17 Total Damage 1288 | . . . 1056 232 Kills 25 | . . . 20 5 Allies Corrupted . | . . . . . Allies Melted . | . . . . . Intel | -11 -10 -9 -9 -8 ------- Run | Yrd Mat Mat Sto Mat Robot Analysis Total 1 | . . . 1 . Derelict Logs Recovered . | . . . . . Drone Launches . | . . . . . Drone Recoveries . | . . . . . Exploration | -11 -10 -9 -9 -8 ------------- Run | Yrd Mat Mat Sto Mat Turns Passed 1435 | 47 127 67 897 297 Spaces Moved 1297 | 43 125 48 817 264 Core 14 | 9 . . 5 . Treads 17 | . . . 17 . Legs 339 | . . . 339 . Wheels 285 | 34 125 48 78 . Hover 51 | . . . 51 . Flight 591 | . . . 327 264 Fastest Speed 28 | 50 80 90 29 28 Average Speed 74 | 73 85 90 86 30 Slowest Speed 250 | 80 95 90 250 107 Overloaded Moves . | . . . . . Propulsion Burnouts . | . . . . . Robots Hopped . | . . . . . Cave-ins Triggered . | . . . . . Exploration Rate (%) 29 | 3 31 4 89 22 Regions Visited 4 Branch Regions 1 Pre-discovered Areas . | . . . . . Known Exits Taken . | . . . . . Unknown Exits Taken 4 | 1 1 1 1 . Scrap Searched . | . . . . . Spaces Dug . | . . . . . Terrain Destroyed . | . . . . . Melee . | . . . . . Projectile . | . . . . . AOE . | . . . . . Terrain Rammed . | . . . . . Walls Destroyed . | . . . . . Machines Disabled . | . . . . . Actions | -11 -10 -9 -9 -8 --------- Run | Yrd Mat Mat Sto Mat Total 1622 | 58 135 61 956 412 Wait 98 | . . . 64 34 Move 1293 | 42 124 47 816 264 Hop . | . . . . . Pick Up 39 | 12 2 3 10 12 Fast Attach 10 | . 1 . 3 6 Attach 27 | 4 2 2 5 14 Detach 1 | . . . . 1 Swap 30 | . 1 1 17 11 Drop 17 | . . 1 11 5 Fire 103 | . 5 7 28 63 Melee . | . . . . . Ram 2 | . . . . 2 Kick . | . . . . . Crush . | . . . . . Escape Stasis . | . . . . . Rewire 2 | . . . 2 . Trap . | . . . . . Miscellaneous . | . . . . . Route ------- -11/Scrapyard -10/Materials -9/Materials -9/Storage -8/Materials History --------- Turn | Location | Event 5 | -11/Scrapyard | Discovered new exit (range 16) 48 | -11/Scrapyard | Entered Materials 148 | -10/Materials | Discovered new exit (range 12) 175 | -10/Materials | Entered another Materials area 175 | -9/Materials | Evolved 2 slots: Propulsion x2 226 | -9/Materials | Discovered new exit (range 16) 242 | -9/Materials | Entered Storage 291 | -9/Storage | Assisted by bots powering up and referring to "LRC-V3" 586 | -9/Storage | Build established: Commander-Mutant 642 | -9/Storage | First assault squad dispatched 1077 | -9/Storage | Met a pair of Derelict thieves 1124 | -9/Storage | Discovered new exit (range 8) 1139 | -9/Storage | Entered Materials 1139 | -8/Materials | Accompanied by 2 allies 1139 | -8/Materials | Evolved 2 slots: Power x1, Utility x1 1282 | -8/Materials | Found Prototype Device 1282 | -8/Materials | Identified Active Sensor Suite 1293 | -8/Materials | Lost 6 parts (1p1n2u2w) 1369 | -8/Materials | Core integrity fell below 50% 1396 | -8/Materials | Core integrity fell below 20% 1432 | -8/Materials | Lost 11 parts (3p3n1u4w) 1436 | -8/Materials | Destroyed by G-47 Trooper with Particle Gun Last Messages --------------- Acquired 36 matter. Acquired 16 matter. R-06 Scavenger collects Wheel. Acquired 19 matter. Acquired 3 matter. K-01 Serf collects debris. R-06 Scavenger collects Imp. Heat Sink. Acquired Beamcaster. K-01 Serf collects debris. Acquired Imp. Assault Rifle. O-16 Technician suffers critical hit (Burn). K-01 Serf collects debris. R-06 Scavenger collects Lgt. Nuclear Core. K-01 Serf collects debris. B-36 Bruiser destroyed. Switching to secondary target: G-47 Trooper. O-16 Technician destroyed. Acquired Ion Engine. Imp. Flight Unit destroyed. G-47 Trooper destroyed. Map ----- +----------------------------------------------------+ | ???????????????????????????????????????? | | ???????????????????????????????????????? | | ???????????????????????????????????????? | | ???????????????????????????????????????? | | ???????????????????????????????????????? | | ???????????????????????????????????????? | | ???????????????????????????????????????? | | ???????????????????????????????????????? | | ?????????????????? ??????????????????? | | ?????????????????# #?????????????????? | | ?????????????????# #?????????????????? | | ??????#??????????# #?????????????????? | | ?????????????????# #?????????????????? | | ?????????????????# #?????###########?? | | ?????????????????# #?????# [ #?? | | ???????#?????????# #?????#"S """ #?? | | ?#??????????? ???# #?????#""" """ #?? | | ???#?????????????# #?????# "" """ #?? | | ?????????????????+ #?????# #?? | | ?????????????????# #?????# ! #?? | | ?????????????????#[= #?????# = #?? | | ????????????????##%g ##????# = = #?? | | ?????????########*/* ##########+####### | | ????????##% % %=%% =%! | | ????????## ! ar= ua g= | | ????????## = !@ ! g t | | ????????## ####! ########+########+ | | ?????????# #??#% #????? ??????? | | ?????????# #?## #??# ????? | | ########## ##?#==!!!!#??# #???? | | # [[[ ## ##?#==!!!!#??# #???? | | # [[[ ## ###########??# #???? | | # [[[ %/##???????????# #???? | | # * %#???????????# ! #???? | | # = #???????????# #???? | | # [ %! #???????????# #???? | | # # = #???????????##########???? | | # """ # #????????????????????????? | | # """ ## ##????????????????????????? | | # """ ## #?????????????????????????? | | # ## #?????????????????????????? | | ########## #??#??????????????????????? | | ########## #########?????????????????? | | # # # #?????????????????? | | #* """" # # """ #?????????????????? | | # """" # # """ #?????????????????? | | # ! """" # # """ #? ?????????????? | | # #^ # ## ##???????????? | | # """" / + # #???????????? | | # """" # # # #?"?????????? | +----------------------------------------------------+ Best States ------------- Heat Dissipation 31 Energy Generation 23 Energy Capacity 290 Matter Stores 300 Matter Capacity 300 Sight Range 16 Robot Scan Range 20 Terrain Scan Range 16 Terrain Scan Density 10 ECM Strength 1 Resistance: EX 25 Evasion (%) 64 Recoil Reduction 1 Offensive Hacking 10 Item Schematics ----------------- Imp. EM Pulse Cannon | -9/Storage | Hacked Energy Filter | -9/Storage | Hacked Disposable Heat Sink | -9/Storage | Hacked Remote Datajack | -9/Storage | Hacked Plasma Cutter | -9/Storage | Hacked EM Pulse Cannon | -9/Storage | Hacked Visual Processing Unit | -9/Storage | Hacked Robot Schematics ------------------ None Fabricated ------------ Nothing Alien Tech Used ----------------- None Achievements -------------- None Challenges ------------ None Game ------ Seed SapperTargetThrower Manual? 0 Play Time 00:22:56 Cumulative 35.0 hours Start 2024.10.17 @ 17:04:18 End 2024.10.17 @ 17:26:32 Sessions 1 Manual Loads 0 Difficulty Rogue Special Mode None Game No. 38 Rogue 36 Adventurer 2 Explorer 0 Win Type - Total 0 Types 0/0/0/0/0/0/0/0/0 Lore% 16 Gallery% 30 Achievement% 23 Wizard Run 0 Options --------- Layout 1 ASCII 0 Keyboard 0 Movement Mouse Keybinds 0 Fullscreen 0 Font 28/X11 Map View 50x35 Zoom Use 0% Tactical HUD 0 Map Filters NONE Filters NONE Steam 1 RUN: 58b4bc37-67fd-4a77-83ab-88a7bb604510